fUSD/lending_fUSD_20250107
["ID","MTS","AMOUNT","RATE_DAILY","PERIOD"]
[347957077,1736245832714,-744.63,9.696e-05,2]
[347957078,1736245832723,-500.0,9.696e-05,2]
[347957079,1736245832733,-500.0,9.696e-05,2]
[347957080,1736245832742,-500.0,9.696e-05,2]
[347957081,1736245832752,-994.67,9.696e-05,2]
[347957082,1736245832762,-500.0,9.696e-05,2]
[347957083,1736245832771,-500.0,9.696e-05,2]
[347957084,1736245832781,-566.63,9.696e-05,2]
[347957085,1736245832791,-531.96,9.696e-05,2]
[347957086,1736245832801,-500.0,9.696e-05,2]
[347957087,1736245832811,-500.0,9.696e-05,2]
[347957088,1736245832820,-525.03704134,9.696e-05,2]
[347957089,1736245832829,-1004.6,9.696e-05,2]
[347957090,1736245832839,-446.10225939,9.696e-05,2]
[347957091,1736245832848,-362.93904321,9.696e-05,2]
[347957092,1736245832860,-137.06095679,9.696e-05,2]
[347957093,1736245832873,-500.0,9.696e-05,2]
[347957094,1736245832882,-1044.49,9.696e-05,2]
[347957095,1736245832892,-500.0,9.696e-05,2]
[347957096,1736245832902,-214.47222254,9.696e-05,2]
[347957097,1736245832915,-285.52777746,9.696e-05,2]
[347957098,1736245832925,-500.0,9.696e-05,2]
[347957099,1736245832935,-500.0,9.696e-05,2]
[347957100,1736245832945,-1422.72,9.697e-05,2]
[347957101,1736245832955,-500.0,9.697e-05,2]
[347957102,1736245832965,-5000.0,9.697e-05,2]
[347957103,1736245832974,-384.81,9.697e-05,2]
[347957104,1736245832984,-500.0,9.697e-05,2]
[347957105,1736245832994,-500.0,9.697e-05,2]
[347957106,1736245833004,-2345.65,9.697e-05,2]
[347957107,1736245833015,-500.0,9.697e-05,2]
[347957108,1736245833024,-500.0,9.697e-05,2]
[347957109,1736245833034,-500.0,9.697e-05,2]
[347957110,1736245833045,-500.0,9.697e-05,2]
[347957111,1736245833055,-500.0,9.697e-05,2]
[347957112,1736245833065,-500.0,9.697e-05,2]
[347957113,1736245833075,-500.0,9.697e-05,2]
[347957114,1736245833085,-500.0,9.698e-05,2]
[347957115,1736245833095,-693.71,9.698e-05,2]
[347957116,1736245833105,-544.73,9.698e-05,2]
[347957117,1736245833115,-500.0,9.698e-05,2]
[347957118,1736245833125,-500.0,9.698e-05,2]
[347957119,1736245833135,-500.0,9.698e-05,2]
[347957120,1736245833145,-500.0,9.698e-05,2]
[347957121,1736245833154,-500.0,9.698e-05,2]
[347957122,1736245833164,-500.0,9.698e-05,2]
[347957123,1736245833174,-847.544,9.761e-05,2]
[347957124,1736245833184,-500.0,9.799e-05,2]
[347957125,1736245833455,-2055.27,9.799e-05,2]
[347957126,1736245833465,-3195.84,9.799e-05,2]
[347957127,1736245833475,-2038.16,9.799e-05,2]
[347957128,1736245833485,-735.6,9.799e-05,2]
[347957129,1736245833495,-2214.21,9.799e-05,2]
[347957130,1736245833506,-2429.03,9.799e-05,2]
[347957131,1736245833520,-500.0,9.799e-05,2]
[347957132,1736245833530,-500.0,9.799e-05,2]
[347957133,1736245833541,-500.0,9.799e-05,2]
[347957134,1736245833551,-500.0,9.799e-05,2]
[347957135,1736245833563,-520.95,9.799e-05,2]
[347957136,1736245833573,-500.0,9.799e-05,2]
[347957137,1736245833583,-500.0,9.799e-05,2]
[347957138,1736245833593,-500.0,9.799e-05,2]
[347957139,1736245833602,-500.0,9.799e-05,2]
[347957140,1736245833612,-500.0,9.799e-05,2]
[347957141,1736245833622,-500.0,9.799e-05,2]
[347957142,1736245833631,-500.0,9.799e-05,2]
[347957143,1736245833641,-91711.07358465,9.8e-05,2]
[347957144,1736245833651,-1092.97,9.863e-05,2]
[347957145,1736245833660,-500.0,9.864e-05,2]
[347957146,1736245833670,-600.0,9.864e-05,2]
[347957147,1736245833679,-500.0,9.898e-05,2]
[347957148,1736245833690,-500.0,9.898e-05,2]
[347957149,1736245833699,-500.0,9.898e-05,2]
[347957150,1736245833709,-843.73,9.898e-05,2]
[347957151,1736245833719,-157.62,9.898e-05,2]
[347957152,1736245833728,-500.0,9.898e-05,2]
[347957153,1736245833737,-1281.03,9.898e-05,2]
[347957154,1736245833747,-500.0,9.898e-05,2]
[347957155,1736245833757,-500.0,9.898e-05,2]
[347957156,1736245833770,-1710.91,9.898e-05,2]
[347957157,1736245833780,-500.0,9.898e-05,2]
[347957158,1736245833790,-500.0,9.898e-05,2]
[347957159,1736245833799,-1353.01,9.898e-05,2]
[347957160,1736245833809,-5138.43,9.898e-05,2]
[347957161,1736245833818,-618.03,9.898e-05,2]
[347957162,1736245833828,-224.412216,9.898e-05,2]
[347957163,1736245833838,-500.0,9.898e-05,2]
[347957164,1736245833848,-500.0,9.898e-05,2]
[347957165,1736245833858,-266.257818,9.898e-05,2]
[347957166,1736245833868,-852.49,9.898e-05,2]
[347957167,1736245833878,-519.38,9.898e-05,2]
[347957168,1736245833888,-1488.15,9.898e-05,2]
[347957169,1736245833897,-537.01,9.898e-05,2]
[347957170,1736245833908,-500.0,9.898e-05,2]
[347957171,1736245833918,-2399.52,9.898e-05,2]
[347957172,1736245833928,-500.0,9.898e-05,2]
[347957173,1736245833938,-500.0,9.898e-05,2]
[347957174,1736245833947,-500.0,9.898e-05,2]
[347957175,1736245833957,-500.0,9.898e-05,2]
[347957176,1736245833967,-500.0,9.898e-05,2]
[347957177,1736245833977,-1876.88,9.898e-05,2]
[347957178,1736245833987,-1063.4,9.898e-05,2]
[347957179,1736245833997,-500.0,9.898e-05,2]
[347957180,1736245834006,-500.0,9.898e-05,2]
[347957181,1736245834017,-500.0,9.898e-05,2]
[347957182,1736245834028,-589.04,9.898e-05,2]
[347957183,1736245834038,-500.0,9.899e-05,2]
[347957184,1736245834048,-500.0,9.899e-05,2]
[347957185,1736245834059,-500.0,9.899e-05,2]
[347957186,1736245834069,-500.0,9.899e-05,2]
[347957187,1736245834079,-500.0,9.899e-05,2]
[347957188,1736245834089,-500.0,9.899e-05,2]
[347957189,1736245834099,-152.22,9.899e-05,2]
[347957190,1736245834110,-500.0,9.899e-05,2]
[347957191,1736245834120,-500.0,9.899e-05,2]
[347957192,1736245834130,-500.0,9.899e-05,2]
[347957193,1736245834140,-500.0,9.899e-05,2]
[347957194,1736245834149,-638.48,9.899e-05,2]
[347957195,1736245834160,-500.0,9.899e-05,2]
[347957196,1736245834170,-500.0,9.899e-05,2]
[347957197,1736245834179,-500.0,9.899e-05,2]
[347957198,1736245834189,-500.0,9.899e-05,2]
[347957199,1736245834201,-500.0,9.899e-05,2]
[347957200,1736245834211,-500.0,9.899e-05,2]
[347957201,1736245834222,-512.78086236,9.899e-05,2]
[347957202,1736245834232,-3760.23082051,9.899e-05,2]
[347957203,1736245834241,-500.0,9.899e-05,2]
[347957204,1736245834251,-500.0,9.899e-05,2]
[347957205,1736245834261,-500.0,9.899e-05,2]
[347957206,1736245834273,-500.0,9.899e-05,2]
[347957207,1736245834283,-500.0,9.899e-05,2]
[347957208,1736245834293,-500.0,9.899e-05,2]
[347957209,1736245834303,-500.0,9.899e-05,2]
[347957210,1736245834313,-500.0,9.899e-05,2]
[347957211,1736245834322,-500.0,9.899e-05,2]
[347957212,1736245834332,-500.0,9.899e-05,2]
[347957213,1736245834342,-500.0,9.899e-05,2]
[347957214,1736245834351,-500.0,9.899e-05,2]
[347957215,1736245834361,-500.0,9.899e-05,2]
[347957216,1736245834371,-500.0,9.899e-05,2]
[347957217,1736245834380,-500.0,9.899e-05,2]
[347957218,1736245834390,-500.0,9.899e-05,2]
[347957219,1736245834399,-500.0,9.899e-05,2]
[347957220,1736245834409,-500.0,9.899e-05,2]
[347957221,1736245834418,-500.0,9.899e-05,2]
[347957222,1736245834427,-500.0,9.899e-05,2]
[347957223,1736245834437,-500.0,9.899e-05,2]
[347957224,1736245834447,-500.0,9.899e-05,2]
[347957225,1736245834457,-500.0,9.899e-05,2]
[347957226,1736245834467,-500.0,9.899e-05,2]
[347957227,1736245834476,-500.0,9.899e-05,2]
[347957228,1736245834485,-500.0,9.899e-05,2]
[347957229,1736245834495,-500.0,9.899e-05,2]
[347957230,1736245834506,-500.0,9.899e-05,2]
[347957231,1736245834516,-500.0,9.899e-05,2]
[347957232,1736245834526,-500.0,9.899e-05,2]
[347957233,1736245834535,-500.0,9.899e-05,2]
[347957234,1736245834545,-500.0,9.899e-05,2]
[347957235,1736245834555,-500.0,9.899e-05,2]
[347957236,1736245834564,-500.0,9.899e-05,2]
[347957237,1736245834573,-500.0,9.899e-05,2]
[347957238,1736245834583,-500.0,9.899e-05,2]
[347957239,1736245834592,-500.0,9.899e-05,2]
[347957240,1736245834601,-500.0,9.899e-05,2]
[347957241,1736245834611,-500.0,9.899e-05,2]
[347957242,1736245834620,-500.0,9.899e-05,2]
[347957243,1736245834629,-500.0,9.899e-05,2]
[347957244,1736245834638,-500.0,9.899e-05,2]
[347957245,1736245834648,-500.0,9.899e-05,2]
[347957246,1736245834657,-500.0,9.899e-05,2]
[347957247,1736245834667,-500.0,9.899e-05,2]
[347957248,1736245834676,-222.04095529,9.899e-05,2]
[347957249,1736245834685,-500.0,9.899e-05,2]
[347957250,1736245834695,-621.6,9.899e-05,2]
[347957251,1736245834705,-500.0,9.899e-05,2]
[347957252,1736245834714,-428.65465859,9.899e-05,2]
[347957253,1736245834724,-500.0,9.899e-05,2]
[347957254,1736245834733,-500.0,9.899e-05,2]
[347957255,1736245834743,-500.0,9.899e-05,2]
[347957256,1736245834752,-500.0,9.899e-05,2]
[347957257,1736245834762,-500.0,9.899e-05,2]
[347957258,1736245834773,-500.0,9.899e-05,2]
[347957259,1736245834783,-500.0,9.899e-05,2]
[347957260,1736245834792,-500.0,9.899e-05,2]
[347957261,1736245834801,-500.0,9.899e-05,2]
[347957262,1736245834811,-500.0,9.899e-05,2]
[347957263,1736245834820,-500.0,9.899e-05,2]
[347957264,1736245834829,-500.0,9.899e-05,2]
[347957265,1736245834838,-500.0,9.899e-05,2]
[347957266,1736245834847,-500.0,9.899e-05,2]
[347957267,1736245834857,-500.0,9.899e-05,2]
[347957268,1736245834868,-544.10590707,9.899e-05,2]
[347957269,1736245834878,-500.0,9.899e-05,2]
[347957270,1736245834888,-500.0,9.899e-05,2]
[347957271,1736245834898,-500.0,9.899e-05,2]
[347957272,1736245834909,-500.0,9.899e-05,2]
[347957273,1736245834918,-368.3255527,9.899e-05,2]
[347957274,1736245834933,-131.6744473,9.899e-05,2]
[347957275,1736245834944,-500.0,9.899e-05,2]
[347957276,1736245834954,-500.0,9.899e-05,2]
[347957277,1736245834963,-500.0,9.899e-05,2]
[347957278,1736245834973,-500.0,9.899e-05,2]
[347957279,1736245834983,-500.0,9.899e-05,2]
[347957280,1736245834993,-500.0,9.899e-05,2]
[347957281,1736245835003,-500.0,9.899e-05,2]
[347957282,1736245835013,-500.0,9.899e-05,2]
[347957283,1736245835023,-500.0,9.899e-05,2]
[347957284,1736245835032,-500.0,9.899e-05,2]
[347957285,1736245835042,-500.0,9.899e-05,2]
[347957286,1736245835052,-500.0,9.899e-05,2]
[347957287,1736245835061,-500.0,9.899e-05,2]
[347957288,1736245835072,-500.0,9.899e-05,2]
[347957289,1736245835081,-500.0,9.899e-05,2]
[347957290,1736245835091,-500.0,9.899e-05,2]
[347957291,1736245835100,-500.0,9.899e-05,2]
[347957292,1736245835109,-500.0,9.899e-05,2]
[347957293,1736245835119,-500.0,9.899e-05,2]
[347957294,1736245835128,-314.64,9.899e-05,2]
[347957295,1736245835138,-500.0,9.899e-05,2]
[347957296,1736245835148,-219.78303388,9.899e-05,2]
[347957297,1736245835157,-500.0,9.899e-05,2]
[347957298,1736245835167,-500.0,9.899e-05,2]
[347957299,1736245835176,-500.0,9.899e-05,2]
[347957300,1736245835185,-500.0,9.899e-05,2]
[347957301,1736245835195,-500.0,9.899e-05,2]
[347957302,1736245835205,-500.83026792,9.899e-05,2]
[347957303,1736245835216,-500.0,9.899e-05,2]
[347957304,1736245835226,-500.0,9.899e-05,2]
[347957305,1736245835237,-500.0,9.899e-05,2]
[347957306,1736245835247,-500.0,9.899e-05,2]
[347957307,1736245835257,-500.0,9.899e-05,2]
[347957308,1736245835268,-500.0,9.899e-05,2]
[347957309,1736245835278,-500.0,9.899e-05,2]
[347957310,1736245835287,-566.10075035,9.899e-05,2]
[347957311,1736245835297,-500.0,9.899e-05,2]
[347957312,1736245835306,-500.0,9.899e-05,2]
[347957313,1736245835316,-500.0,9.899e-05,2]
[347957314,1736245835325,-500.0,9.899e-05,2]
[347957315,1736245835335,-500.0,9.899e-05,2]
[347957316,1736245835345,-500.0,9.899e-05,2]
[347957317,1736245835354,-547.49,9.899e-05,2]
[347957318,1736245835364,-500.0,9.899e-05,2]
[347957319,1736245835374,-500.0,9.899e-05,2]
[347957320,1736245835384,-500.0,9.899e-05,2]
[347957321,1736245835393,-500.0,9.899e-05,2]
[347957322,1736245835403,-500.0,9.899e-05,2]
[347957323,1736245835412,-500.0,9.899e-05,2]
[347957324,1736245835422,-447.85,9.899e-05,2]
[347957325,1736245835431,-500.0,9.899e-05,2]
[347957326,1736245835441,-500.0,9.899e-05,2]
[347957327,1736245835450,-500.0,9.899e-05,2]
[347957328,1736245835459,-500.0,9.899e-05,2]
[347957329,1736245835469,-500.0,9.899e-05,2]
[347957330,1736245835478,-500.0,9.899e-05,2]
[347957331,1736245835488,-500.0,9.899e-05,2]
[347957332,1736245835497,-500.0,9.899e-05,2]
[347957333,1736245835506,-500.0,9.899e-05,2]
[347957334,1736245835516,-500.0,9.899e-05,2]
[347957335,1736245835525,-317.39400158,9.899e-05,2]
[347957336,1736245835534,-500.0,9.899e-05,2]
[347957337,1736245835544,-500.0,9.899e-05,2]
[347957338,1736245835554,-500.0,9.899e-05,2]
[347957339,1736245835563,-500.0,9.899e-05,2]
[347957340,1736245835572,-500.0,9.899e-05,2]
[347957341,1736245835582,-500.0,9.899e-05,2]
[347957342,1736245835591,-500.0,9.899e-05,2]
[347957343,1736245835600,-500.0,9.899e-05,2]
[347957344,1736245835609,-500.0,9.899e-05,2]
[347957345,1736245835618,-500.0,9.899e-05,2]
[347957346,1736245835627,-500.0,9.899e-05,2]
[347957347,1736245835637,-500.0,9.899e-05,2]
[347957348,1736245835646,-500.0,9.899e-05,2]
[347957349,1736245835655,-500.0,9.899e-05,2]
[347957350,1736245835664,-500.0,9.899e-05,2]
[347957351,1736245835674,-500.0,9.899e-05,2]
[347957352,1736245835683,-500.0,9.899e-05,2]
[347957353,1736245835692,-500.0,9.899e-05,2]
[347957354,1736245835701,-500.0,9.899e-05,2]
[347957355,1736245835711,-500.0,9.899e-05,2]
[347957356,1736245835719,-500.0,9.899e-05,2]
[347957357,1736245835728,-500.0,9.899e-05,2]
[347957358,1736245835737,-500.0,9.899e-05,2]
[347957359,1736245835747,-500.0,9.899e-05,2]
[347957360,1736245835756,-500.0,9.899e-05,2]
[347957361,1736245835766,-500.0,9.899e-05,2]
[347957362,1736245835775,-500.0,9.899e-05,2]
[347957363,1736245835784,-500.0,9.899e-05,2]
[347957364,1736245835793,-500.0,9.899e-05,2]
[347957365,1736245835802,-500.0,9.899e-05,2]
[347957366,1736245835811,-500.0,9.899e-05,2]
[347957367,1736245835820,-560.6,9.899e-05,2]
[347957368,1736245835829,-500.0,9.899e-05,2]
[347957369,1736245835839,-500.0,9.899e-05,2]
[347957370,1736245835848,-500.0,9.899e-05,2]
[347957371,1736245835857,-500.0,9.899e-05,2]
[347957372,1736245835867,-491.8381858,9.899e-05,2]
[347957373,1736245835876,-500.0,9.899e-05,2]
[347957374,1736245835886,-500.0,9.899e-05,2]
[347957375,1736245835896,-500.0,9.899e-05,2]
[347957376,1736245835906,-500.0,9.899e-05,2]
[347957377,1736245835915,-500.0,9.899e-05,2]
[347957378,1736245835924,-500.0,9.899e-05,2]
[347957379,1736245835934,-500.0,9.899e-05,2]
[347957380,1736245835943,-500.0,9.899e-05,2]
[347957381,1736245835953,-500.0,9.899e-05,2]
[347957382,1736245835962,-500.0,9.899e-05,2]
[347957383,1736245835972,-500.0,9.899e-05,2]
[347957384,1736245835982,-500.0,9.899e-05,2]
[347957385,1736245835991,-500.0,9.899e-05,2]
[347957386,1736245836001,-500.0,9.899e-05,2]
[347957387,1736245836011,-500.0,9.899e-05,2]
[347957388,1736245836021,-500.0,9.899e-05,2]
[347957389,1736245836031,-500.0,9.899e-05,2]
[347957390,1736245836040,-500.0,9.899e-05,2]
[347957391,1736245836050,-204.78654381,9.899e-05,2]
[347957392,1736245836060,-500.0,9.899e-05,2]
[347957393,1736245836070,-625.36767616,9.899e-05,2]
[347957394,1736245836080,-500.0,9.899e-05,2]
[347957395,1736245836090,-500.0,9.899e-05,2]
[347957396,1736245836099,-500.0,9.899e-05,2]
[347957397,1736245836109,-607.08,9.899e-05,2]
[347957398,1736245836119,-500.0,9.899e-05,2]
[347957399,1736245836129,-500.0,9.899e-05,2]
[347957400,1736245836138,-500.0,9.899e-05,2]
[347957401,1736245836147,-500.0,9.899e-05,2]
[347957402,1736245836157,-500.0,9.899e-05,2]
[347957403,1736245836167,-500.0,9.899e-05,2]
[347957404,1736245836176,-500.0,9.899e-05,2]
[347957405,1736245836185,-500.0,9.899e-05,2]
[347957406,1736245836195,-500.0,9.899e-05,2]
[347957407,1736245836205,-500.0,9.899e-05,2]
[347957408,1736245836215,-500.0,9.899e-05,2]
[347957409,1736245836225,-500.0,9.899e-05,2]
[347957410,1736245836235,-500.0,9.899e-05,2]
[347957411,1736245836245,-500.0,9.899e-05,2]
[347957412,1736245836254,-500.0,9.899e-05,2]
[347957413,1736245836266,-500.0,9.899e-05,2]
[347957414,1736245836276,-500.0,9.899e-05,2]
[347957415,1736245836285,-500.0,9.899e-05,2]
[347957416,1736245836295,-212.83458338,9.899e-05,2]
[347957417,1736245836305,-500.0,9.899e-05,2]
[347957418,1736245836314,-500.0,9.899e-05,2]
[347957419,1736245836323,-500.0,9.899e-05,2]
[347957420,1736245836332,-500.0,9.899e-05,2]
[347957421,1736245836342,-500.0,9.899e-05,2]
[347957422,1736245836352,-500.0,9.899e-05,2]
[347957423,1736245836361,-500.0,9.899e-05,2]
[347957424,1736245836371,-500.0,9.899e-05,2]
[347957425,1736245836380,-221.01578604,9.899e-05,2]
[347957426,1736245836389,-500.0,9.899e-05,2]
[347957427,1736245836398,-500.0,9.899e-05,2]
[347957428,1736245836408,-624.09,9.899e-05,2]
[347957429,1736245836417,-500.0,9.899e-05,2]
[347957430,1736245836426,-500.0,9.899e-05,2]
[347957431,1736245836435,-478.42,9.899e-05,2]
[347957432,1736245836445,-500.0,9.899e-05,2]
[347957433,1736245836454,-500.0,9.899e-05,2]
[347957434,1736245836463,-500.0,9.899e-05,2]
[347957435,1736245836473,-500.0,9.899e-05,2]
[347957436,1736245836482,-500.0,9.899e-05,2]
[347957437,1736245836491,-500.0,9.899e-05,2]
[347957438,1736245836501,-500.0,9.899e-05,2]
[347957439,1736245836510,-500.0,9.899e-05,2]
[347957440,1736245836520,-500.0,9.899e-05,2]
[347957441,1736245836530,-500.0,9.899e-05,2]
[347957442,1736245836539,-542.4,9.899e-05,2]
[347957443,1736245836548,-500.0,9.899e-05,2]
[347957444,1736245836558,-500.0,9.899e-05,2]
[347957445,1736245836567,-527.76,9.899e-05,2]
[347957446,1736245836576,-500.0,9.899e-05,2]
[347957447,1736245836586,-500.0,9.899e-05,2]
[347957448,1736245836595,-539.93,9.899e-05,2]
[347957449,1736245836604,-500.0,9.899e-05,2]
[347957450,1736245836613,-473.6,9.899e-05,2]
[347957451,1736245836622,-500.0,9.899e-05,2]
[347957452,1736245836631,-500.0,9.899e-05,2]
[347957453,1736245836641,-1334.69,9.899e-05,2]
[347957454,1736245836650,-500.0,9.899e-05,2]
[347957455,1736245836659,-500.0,9.899e-05,2]
[347957456,1736245836669,-500.0,9.899e-05,2]
[347957457,1736245836679,-255.33098131,9.899e-05,2]
[347957458,1736245836688,-3108.92,9.899e-05,2]
[347957459,1736245836697,-1162.1,9.899e-05,2]
[347957460,1736245836707,-293.73064746,9.899e-05,2]
[347957461,1736245836716,-190.63,9.899e-05,2]
[347957462,1736245836725,-500.0,9.899e-05,2]
[347957463,1736245836735,-500.0,9.899e-05,2]
[347957464,1736245836744,-500.0,9.899e-05,2]
[347957465,1736245836753,-500.0,9.899e-05,2]
[347957466,1736245836763,-500.0,9.899e-05,2]
[347957467,1736245836772,-1495.33,9.899e-05,2]
[347957468,1736245836782,-500.0,9.899e-05,2]
[347957469,1736245836791,-500.0,9.899e-05,2]
[347957470,1736245836800,-1681.61,9.899e-05,2]
[347957471,1736245836809,-500.0,9.899e-05,2]
[347957472,1736245836819,-500.0,9.899e-05,2]
[347957473,1736245836828,-500.0,9.899e-05,2]
[347957474,1736245836837,-500.0,9.899e-05,2]
[347957475,1736245836847,-362.43644463,9.899e-05,2]
[347957482,1736245837209,-500.0,9.799e-05,2]
[347957484,1736245837219,-137.56355537,9.899e-05,2]
[347957486,1736245837228,-500.0,9.899e-05,2]
[347957488,1736245837238,-500.0,9.899e-05,2]
[347957490,1736245837247,-500.0,9.899e-05,2]
[347957492,1736245837256,-500.0,9.899e-05,2]
[347957494,1736245837266,-500.0,9.899e-05,2]
[347957496,1736245837275,-500.0,9.899e-05,2]
[347957498,1736245837284,-500.0,9.899e-05,2]
[347957500,1736245837293,-1327.91,9.899e-05,2]
[347957502,1736245837302,-570.43,9.899e-05,2]
[347957504,1736245837311,-500.0,9.899e-05,2]
[347957506,1736245837320,-500.0,9.899e-05,2]
[347957508,1736245837329,-3118.15644463,9.899e-05,2]
[347957553,1736245838358,-750.17897989,9.899e-05,2]
[347957554,1736245838370,-995.68457548,9.899e-05,2]
[347957555,1736245838379,-500.0,9.899e-05,2]
[347957556,1736245838389,-287.27,9.899e-05,2]
[347957557,1736245838398,-500.0,9.899e-05,2]
[347957558,1736245838408,-500.0,9.899e-05,2]
[347957559,1736245838417,-500.0,9.899e-05,2]
[347957560,1736245838427,-658.0,9.9e-05,2]
[347957561,1736245838437,-18382.95584705,9.9e-05,2]
[347957562,1736245838448,-11892.72271579,9.9e-05,2]
[347957563,1736245838468,-385.55744706,9.799e-05,2]
[347957564,1736245838525,-114.44255294,9.799e-05,2]
[347957565,1736245838534,-368.27244706,9.9e-05,2]
[347957566,1736245838546,-483.655,9.9e-05,2]
[347957567,1736245838604,-30462.18000001,9.9e-05,2]
[347957568,1736245838688,-872.38999999,9.9e-05,2]
[347957569,1736245838699,-75220.22812802,9.9e-05,2]
[347957571,1736245838711,-6393.94999784,9.9e-05,2]
[347957573,1736245838722,-19544.48325836,9.9e-05,2]
[347957578,1736245838760,-50330.08780033,9.9e-05,2]
[347957583,1736245838800,-7214.41,9.9e-05,2]
[347957604,1736245840690,-500.0,9.799e-05,2]
[347957605,1736245840700,-21946.09841526,9.9e-05,2]
[347957609,1736245843509,-500.0,9.799e-05,2]
[347957610,1736245843520,-598.08,9.899e-05,2]
[347957611,1736245843530,-308.81085224,9.899e-05,2]
[347957618,1736245846541,-500.0,9.697e-05,2]
[347957619,1736245846550,-1299.7,9.799e-05,2]
[347957620,1736245846559,-500.0,9.799e-05,2]
[347957621,1736245846569,-500.0,9.799e-05,2]
[347957622,1736245846578,-500.0,9.799e-05,2]
[347957623,1736245846587,-500.0,9.799e-05,2]
[347957624,1736245846596,-150.691692,9.898e-05,2]
[347957625,1736245846605,-18.14333599,9.899e-05,2]
[347957626,1736245846711,-500.0,9.898e-05,2]
[347957627,1736245846721,-126.98153394,9.899e-05,2]
[347957629,1736245846758,-46.06427783,9.899e-05,2]
[347957630,1736245846767,-381.77313167,9.899e-05,2]
[347957633,1736245846780,-118.22686833,9.899e-05,2]
[347957634,1736245846790,-351.52648734,9.899e-05,2]
[347957677,1736245967058,976.4953583,5.481e-05,7]
[347957687,1736246795155,-374.13139,8.178e-05,2]
[347957688,1736246795177,-47.29488978,8.219e-05,2]
[347957689,1736246798938,3000.0,0.0002,120]
[347957715,1736247031591,-486.88262817,8.219e-05,2]
[347957716,1736247031704,-121.59248205,8.219e-05,2]
[347957717,1736247031714,-250.0,8.335e-05,2]
[347957718,1736247031723,-162.34,8.342e-05,2]
[347957719,1736247031733,-200.0,8.342e-05,2]
[347957720,1736247031743,-1287.02,8.345e-05,2]
[347957721,1736247031752,-1000.0,8.346e-05,2]
[347957722,1736247031762,-200.0,8.398e-05,2]
[347957723,1736247031771,-1425.06,8.403e-05,2]
[347957724,1736247031781,-1744.35,8.431e-05,2]
[347957725,1736247031791,-1823.13,8.433e-05,2]
[347957726,1736247031800,-7871.50751795,8.467e-05,2]
[347957727,1736247031811,-6290.0000001,8.467e-05,2]
[347957728,1736247031822,-5880.0,8.467e-05,2]
[347957729,1736247031842,-3858.49248195,8.467e-05,2]
[347957730,1736247031852,-250.0,8.478e-05,2]
[347957731,1736247031861,-319.22,8.519e-05,2]
[347957732,1736247031870,-825.69,8.626e-05,2]
[347957733,1736247031879,-585.55,8.638e-05,2]
[347957734,1736247031888,-250.0,8.679e-05,2]
[347957735,1736247031898,-800.0,8.768e-05,2]
[347957736,1736247031907,-166.7,8.849e-05,2]
[347957737,1736247031916,-185.71,8.883e-05,2]
[347957738,1736247031925,-150.0,8.901e-05,2]
[347957739,1736247031935,-150.0,8.901e-05,2]
[347957740,1736247031946,-150.0,8.901e-05,2]
[347957741,1736247031955,-150.0,8.901e-05,2]
[347957743,1736247031964,-150.0,8.935e-05,2]
[347957745,1736247031973,-150.0,8.943e-05,2]
[347957747,1736247031983,-150.0,8.97e-05,2]
[347957749,1736247031992,-150.0,8.984e-05,2]
[347957751,1736247032001,-150.0,9e-05,2]
[347957752,1736247032011,-150.0,9.004e-05,2]
[347957753,1736247032020,-150.0,9.004e-05,2]
[347957754,1736247032029,-150.0,9.025e-05,2]
[347957755,1736247032039,-150.0,9.038e-05,2]
[347957756,1736247032048,-150.0,9.066e-05,2]
[347957757,1736247032058,-150.0,9.066e-05,2]
[347957758,1736247032067,-150.0,9.072e-05,2]
[347957759,1736247032076,-150.0,9.099e-05,2]
[347957760,1736247032085,-150.0,9.106e-05,2]
[347957761,1736247032095,-150.0,9.107e-05,2]
[347957762,1736247032104,-150.0,9.14e-05,2]